Cogmind - Beta 16 @@@ ROGUE MODE // 2026.01.04 @ 17:27:04 Player: beter Result: Destroyed by G-73 Enforcer with Heavy Laser Performance ------------- Evolutions (8) 4000 Regions Visited (13) 2600 Robots Destroyed (65) 325 Value Destroyed (3534) 3534 Prototype IDs (6) 120 Alien Tech Used (0) 0 Bonus (500) 500 TOTAL SCORE: 11079 Bonus ------- Entered DSFs 500 Cogmind --------- Core Integrity 0/1450 Matter 267/300 Energy 29/100 System Corruption 19% Temperature Cool (0) Movement Core (50) Location -2/Research Parts ------- > --- POWER (2) -------- (None) > --- PROPULSION (6) --- (None) > --- UTILITY (9) ------ Advanced Coolant Injector Improved Target Analyzer Core Analyzer > --- WEAPON (6) ------- (None) > --- INVENTORY (5) ---- Biometal Leg Enhanced Biometal Leg Enhanced Biometal Leg Enhanced Biometal Leg Improved Matter Compressor (300) Peak State ------------ > --- POWER ------------ Light Quantum Reactor Reinforced Quantum Reactor > --- PROPULSION ------- Biometal Leg Biometal Leg Biometal Leg Enhanced Biometal Leg Enhanced Biometal Leg Centrium Leg > --- UTILITY ---------- Advanced Power Amplifier Experimental Cooling System Experimental Cooling System Advanced Coolant Injector Medium Storage Unit Improved Target Analyzer Core Analyzer Advanced Recoil Stabilizer Advanced Transmission Jammer > --- WEAPON ----------- Dispersion Rifle Compact HERF Cannon Phase Cannon Nova Cannon KE Penetrator Enhanced Hardcell Cannon > --- INVENTORY -------- Neutrino Core Light Particle Reactor Reinforced Quantum Reactor Biometal Leg Enhanced Biometal Leg Enhanced Biometal Leg Enhanced Biometal Leg Improved Matter Compressor Advanced Phase Shifter Enhanced Quantum Rifle [Rating: 173] Favorites ----------- Power Micro Nuclear Core Engine Light Angular Momentum Engine Power Core Micro Nuclear Core Reactor Reinforced Quantum Reactor Propulsion Improved Carbon-fiber Leg Leg Improved Carbon-fiber Leg Utility Medium Storage Unit Device Coolant Injector Storage Medium Storage Unit Processor Improved Target Analyzer Hackware System Shield Protection Improved Heavy Armor Plating Weapon Gauss Rifle Energy Gun Dispersion Rifle Energy Cannon Cooled Particle Cannon Ballistic Gun Gauss Rifle Ballistic Cannon Enhanced Hardcell Cannon Launcher Rocket Launcher Build | -11 -10 -10 -9 -8 -7 -6 -5 -5 -5 -4 -3 -3 -2 ------- Run | Yrd Mat Min Mat Mat Fac Fac Fac Upp Upp Fac Res DSF Res Slots Evolved 16 | . . . 2 2 2 2 2 . . 2 2 . 2 Power 1 | . . . . . 1 . . . . . . . . Propulsion 4 | . . . 1 . 1 . . . . 1 . . 1 Utility 7 | . . . 1 1 . 1 1 . . 1 1 . 1 Weapon 4 | . . . . 1 . 1 1 . . . 1 . . Parts Attached 126 | 6 . 2 10 11 15 9 17 11 1 15 1 5 23 Power 23 | 1 . . 2 2 2 3 2 2 1 2 . 1 5 Engine 9 | 1 . . 2 1 . 3 . 2 . . . . . Core 9 | . . . . 1 2 . 2 . 1 2 . . 1 Reactor 5 | . . . . . . . . . . . . 1 4 Propulsion 29 | 2 . . 2 1 3 2 4 4 . 3 1 1 6 Treads . | . . . . . . . . . . . . . . Leg 29 | 2 . . 2 1 3 2 4 4 . 3 1 1 6 Wheel . | . . . . . . . . . . . . . . Hover . | . . . . . . . . . . . . . . Flight . | . . . . . . . . . . . . . . Utility 40 | 1 . 1 4 2 5 3 6 2 . 7 . 1 8 Device 25 | . . 1 3 1 4 1 2 2 . 5 . . 6 Storage 3 | 1 . . . 1 . . 1 . . . . . . Processor 6 | . . . . . . 1 1 . . 2 . . 2 Hackware 1 | . . . . . . . 1 . . . . . . Protection 5 | . . . 1 . 1 1 1 . . . . 1 . Artifact . | . . . . . . . . . . . . . . Weapon 34 | 2 . 1 2 6 5 1 5 3 . 3 . 2 4 Energy Gun 9 | 1 . 1 1 1 1 . . 1 . 2 . . 1 Energy Cannon 12 | . . . . 2 2 1 2 1 . 1 . 2 1 Ballistic Gun 11 | 1 . . 1 3 2 . 2 1 . . . . 1 Ballistic Cannon 1 | . . . . . . . . . . . . . 1 Launcher 1 | . . . . . . . 1 . . . . . . Special Weapon . | . . . . . . . . . . . . . . Impact Weapon . | . . . . . . . . . . . . . . Slashing Weapon . | . . . . . . . . . . . . . . Piercing Weapon . | . . . . . . . . . . . . . . Special Melee Weapon . | . . . . . . . . . . . . . . Unidentified Prototypes 6 | . . . . 1 1 1 1 . . 1 . . 1 Parts Lost 41 | . . 1 2 1 1 . 1 4 . . . 9 22 Power 4 | . . . . . . . . 1 . . . . 3 Propulsion 8 | . . . 1 1 1 . . . . . . . 5 Utility 10 | . . . . . . . 1 1 . . . 3 5 Weapon 19 | . . 1 1 . . . . 2 . . . 6 9 Highest Loss Streak 18 | . . 1 2 1 1 . 1 4 . . . 9 18 To Critical Strikes 1 | . . . . . . . . . . . . . 1 Average Backups 8 | 2 5 6 7 8 9 9 9 9 9 9 7 4 6 Power 1 | . 1 1 . . 1 1 1 1 1 1 1 1 1 Propulsion 2 | 2 3 4 3 2 1 2 3 4 4 3 2 1 2 Utility 1 | . . . . 1 1 1 1 1 1 1 1 1 1 Weapon 3 | . . 1 3 4 5 4 4 3 3 3 3 1 . Tool/Special . | . . . . . . . . . . . . . . Unused Backups 25 | . . 2 3 6 6 2 1 . . . . . 5 Power 2 | . . . 1 . 1 . . . . . . . . Propulsion 9 | . . 2 . 3 . . . . . . . . 4 Utility 6 | . . . . 1 2 1 1 . . . . . 1 Weapon 8 | . . . 2 2 3 1 . . . . . . . Tool/Special . | . . . . . . . . . . . . . . Average Slot Usage (%) 93 | . 85 94 91 95 99 99 99 91 94 97 95 72 82 Engine 5 | . 14 14 11 8 . 5 8 1 6 3 . . . Core 5 | . . . . . 15 7 2 9 4 6 9 7 . Leg 25 | . 28 28 32 25 29 26 22 22 23 26 23 20 22 Device 12 | . . 8 11 15 17 13 10 10 11 14 14 10 21 Storage 6 | . 14 14 11 9 7 6 5 5 5 5 4 4 3 Processor 4 | . . . . . . 5 5 5 5 11 14 6 6 Protection 3 | . . . 4 8 4 6 4 5 5 1 . . . Energy Gun 5 | . 14 14 11 15 3 . . . 5 9 14 5 4 Energy Cannon 6 | . . . . . 3 13 11 9 . 3 4 5 10 Ballistic Gun 12 | . 14 14 11 10 15 13 16 13 21 12 9 4 1 Peak Build Rating 173 | 6 6 8 15 31 49 64 78 78 75 101 106 106 173 Average Rating 62 | 4 6 7 11 25 42 59 73 74 73 92 105 85 134 On Entrance 49 | . 6 6 8 15 31 49 64 78 75 73 101 104 89 Avg Prop Armor Cover (%) 5 | . . . . . . . . . . . . . 5 Naked Turns . | . . . . . . . . . . . . . . Heaviest Build 122 | 14 14 16 20 34 46 64 72 72 71 73 64 93 122 Greatest Support 174 | 20 20 20 30 35 66 71 74 73 68 85 83 88 174 Greatest Overweight (x) 2 | . . . . 2 . . 1 1 1 . . 1 1 Average Overweight (x) . | . . . . . . . . . . . . . . Largest Inventory Capacity 10 | 8 8 8 8 10 10 10 10 10 10 10 10 10 10 Average Capacity 9 | 7 8 8 8 9 10 10 10 10 10 10 10 10 9 Most Carried 10 | 5 6 8 8 10 10 10 10 10 9 10 8 7 10 Average Carried 8 | 3 5 6 7 8 9 9 9 9 9 9 7 4 6 Final Capacity 10 | 8 8 8 8 10 10 10 10 10 10 10 10 10 5 Final Carried 10 | 5 6 7 8 10 10 10 10 9 9 9 7 5 5 Class Distribution -------------------- 36% | Tank 17% | Scavenger-Gunner 15% | Scavenger-Tank 15% | Mutant 7% | Scavenger-Executioner Dominant Class ---------------- Mutant | -10/Materials Mutant | -10/Mines Scavenger-Mutant | -9/Materials Tank | -8/Materials Tank | -7/Factory Tank | -6/Factory Tank | -5/Factory Scavenger-Tank | -5/Upper Caves Scavenger-Gunner | -5/Upper Caves Scavenger-Gunner | -4/Factory Scavenger-Executioner | -3/Research Gunner | -3/DSF Scavenger-Executioner | -2/Research Resources | -11 -10 -10 -9 -8 -7 -6 -5 -5 -5 -4 -3 -3 -2 ----------- Run | Yrd Mat Min Mat Mat Fac Fac Fac Upp Upp Fac Res DSF Res Matter Collected 3119 | 171 92 66 126 60 441 152 758 522 120 203 . 70 338 Remotely . | . . . . . . . . . . . . . . Salvage Created 3329 | . . 131 126 60 397 231 594 591 188 239 . 222 550 Parts 178 | . . 3 12 2 16 10 41 36 5 12 . 13 28 Haulers Intercepted . | . . . . . . . . . . . . . . Recyclers Shooed 1 | . . . . . . . . . . . . . 1 Parts Field Recycled . | . . . . . . . . . . . . . . Retrieved Matter . | . . . . . . . . . . . . . . Parts Self-Destructed 18 | . . . . . . . . 13 5 . . . . Prevented . | . . . . . . . . . . . . . . Parts Restored . | . . . . . . . . . . . . . . Kills | -11 -10 -10 -9 -8 -7 -6 -5 -5 -5 -4 -3 -3 -2 ------- Run | Yrd Mat Min Mat Mat Fac Fac Fac Upp Upp Fac Res DSF Res Combat Hostiles Destroyed 62 | . . 3 4 1 8 4 11 14 3 4 . 3 7 Guns 28 | . . 3 4 1 5 2 2 6 1 3 . . 1 Cannons 23 | . . . . . 3 2 5 4 2 1 . 1 5 AOE 9 | . . . . . . . 3 4 . . . 2 . Classes Destroyed 13 | . . 1 2 . 2 . 4 2 . . . 2 . Worker 1 | . . . . . . . 1 . . . . . . Recycler 1 | . . . . . . . 1 . . . . . . Operator 1 | . . . . . . . 1 . . . . . . Swarmer 11 | . . . 2 . . . 5 4 . . . . . Grunt 14 | . . 3 . . 5 3 1 . 2 . . . . Brawler 1 | . . . . . 1 . . . . . . . . Duelist 1 | . . . . . . . . . 1 . . . . Sentry 5 | . . . 2 1 1 . . . . 1 . . . Specialist 3 | . . . . . . . . . . . . 1 2 Hunter 9 | . . . . . . . 3 2 . . . 1 3 Programmer 11 | . . . . . 1 1 2 2 . 3 . . 2 Heavy 1 | . . . . . . . . . . . . 1 . Thug 3 | . . . . . . . . 3 . . . . . Savage 1 | . . . . . . . . 1 . . . . . Butcher 1 | . . . . . . . . 1 . . . . . Mutant 1 | . . . . . . . . 1 . . . . . Best Kill Streak 5 | . . 2 2 1 3 3 5 5 3 2 . 3 2 Combat Bots Only 5 | . . 2 2 1 3 3 5 5 3 2 . 3 2 Max Kills in Single Turn 5 | . . 1 1 1 1 1 5 4 1 1 . 1 1 Gunslinging . | . . . . . . . . . . . . . . Exploded 3 | . . . . . . . 3 3 . . . 1 . Melee . | . . . . . . . . . . . . . . Uniques/NPCs Destroyed . | . . . . . . . . . . . . . . Combat | -11 -10 -10 -9 -8 -7 -6 -5 -5 -5 -4 -3 -3 -2 -------- Run | Yrd Mat Min Mat Mat Fac Fac Fac Upp Upp Fac Res DSF Res Hostile Shots Fired 666 | . . 41 23 6 89 22 62 67 8 10 . 39 299 Missed 210 | . . 6 9 2 28 6 15 19 2 5 . 11 107 Hits 456 | . . 35 14 4 61 16 47 48 6 5 . 28 192 Melee 7 | . . . . . . . . 6 . . . . 1 Projectile 449 | . . 35 14 4 61 16 47 42 6 5 . 28 191 Critical Strikes 23 | . . 1 . . . 2 2 3 1 . . 5 9 Actively Blocked 1 | . . . . . . 1 . . . . . . . Part Disruptions 1 | . . . . . . . . . . . . . 1 Damage Taken 9319 | . . 459 179 59 477 244 595 997 116 101 . 1616 4476 Core 1947 | . . 142 15 . 64 . 43 48 19 . . 150 1466 Absorbed by Shields 638 | . . . . . 236 72 230 100 . . . . . Redirected to Shielding 105 | . . . . . . 24 81 . . . . . . Core Remaining (%) 89 | 100 . 43 96 100 90 100 . . 89 100 . 88 . Volleys Fired 132 | . 1 17 14 3 19 5 18 19 7 4 . 11 14 Largest 6 | . 2 2 2 3 3 4 5 5 5 5 . 5 6 Hottest 471 | . 60 85 85 151 133 116 219 219 246 364 . 291 471 Shots Fired 484 | . 2 34 28 9 57 20 90 84 35 20 . 36 69 Gun 323 | . 2 34 28 9 45 10 53 50 32 15 . 20 25 Cannon 153 | . . . . . 12 10 36 28 3 5 . 15 44 Launcher 8 | . . . . . . . 1 6 . . . 1 . Special . | . . . . . . . . . . . . . . Kinetic 249 | . 1 17 14 3 38 10 53 50 25 7 . 11 20 Thermal 188 | . . 6 14 6 19 10 36 28 10 12 . 9 38 Explosive 8 | . . . . . . . 1 6 . . . 1 . Electromagnetic 39 | . 1 11 . . . . . . . 1 . 15 11 Robot Hit Streak 14 | . 1 10 12 7 14 14 7 8 8 11 . 14 7 Robot Miss Streak 11 | . 1 2 3 1 6 2 11 5 1 2 . 2 3 Penetration Max 1 | . . . . . . . 1 . . . . . 1 Secondary Targets 1 | . . 1 . . . . . . . . . . . Max Gunslinging Chain 1 | . . 1 . . . . . . . . . . . Shots Hit Robots 278 | . 1 23 21 7 42 12 38 36 23 12 . 27 36 Core Hits 149 | . . 9 6 2 22 15 19 31 8 9 . 9 19 Critical Kills 4 | . . . . . . . 1 . . 2 . . 1 Critical Parts Destroyed 4 | . . . . . . . . 1 1 . . . 2 Critical Strikes 11 | . . . 1 . . . 1 1 2 2 . . 4 Burn 2 | . . . 1 . . . . . 1 . . . . Meltdown 2 | . . . . . . . 1 . . . . . 1 Destroy 6 | . . . . . . . . 1 1 2 . . 2 Blast 1 | . . . . . . . . . . . . . 1 Melee Attacks . | . . . . . . . . . . . . . . Impact . | . . . . . . . . . . . . . . Slashing . | . . . . . . . . . . . . . . Piercing . | . . . . . . . . . . . . . . Sneak Attacks . | . . . . . . . . . . . . . . Combat Hostiles . | . . . . . . . . . . . . . . Follow-up Attacks . | . . . . . . . . . . . . . . Damage Inflicted 7717 | . 14 298 285 123 942 311 1259 1427 502 345 . 836 1375 Guns 3708 | . 14 298 282 123 639 142 495 458 408 239 . 242 368 Cannons 3262 | . . . . . 303 168 627 568 94 106 . 429 967 Explosions 703 | . . . . . . . 137 401 . . . 165 . Melee . | . . . . . . . . . . . . . . Ramming 44 | . . . 3 . . 1 . . . . . . 40 Kinetic 2730 | . 14 153 126 38 471 142 495 458 305 49 . 145 334 Thermal 3654 | . . 78 156 85 471 168 627 568 197 296 . 204 804 Explosive 703 | . . . . . . . 137 401 . . . 165 . Electromagnetic 586 | . . 67 . . . . . . . . . 322 197 Impact . | . . . . . . . . . . . . . . Slashing . | . . . . . . . . . . . . . . Piercing . | . . . . . . . . . . . . . . Highest Corruption 19 | . . . . . 1 1 2 3 3 1 . 5 19 Average Corruption 2 | . . . . . 1 1 2 2 3 1 . 4 3 Corruption Purged . | . . . . . . . . . . . . . . Corruption Blocked . | . . . . . . . . . . . . . . Effects 36 | . . . . . . . 5 13 3 1 . 4 10 Message Errors 7 | . . . . . . . 1 2 . . . 1 3 Matter Fused 6 | . . . . . . . 2 1 1 . . . 2 Heat Flow Errors 2 | . . . . . . . . 1 . . . 1 . Energy Discharges 3 | . . . . . . . . 1 . 1 . . 1 Parts Rejected 1 | . . . . . . . . 1 . . . . . Data Loss (minor) 7 | . . . . . . . 2 3 1 . . . 1 Data Loss (major) 3 | . . . . . . . . 1 1 . . 1 . Misfires 2 | . . . . . . . . 2 . . . . . Alerts 1 | . . . . . . . . . . . . 1 . Misdirections 2 | . . . . . . . . . . . . . 2 Weapon Failures 2 | . . . . . . . . 1 . . . . 1 Overload Shots . | . . . . . . . . . . . . . . Overflow Damage 62 | . . . . . 19 . 12 14 . 11 . . 6 Projectiles 47 | . . . . . 19 . 7 4 . 11 . . 6 Explosions 15 | . . . . . . . 5 10 . . . . . Melee . | . . . . . . . . . . . . . . Knockbacks 2 | . . . . . . . . . . . . . 2 Impact . | . . . . . . . . . . . . . . Kinetic 2 | . . . . . . . . . . . . . 2 Secondary . | . . . . . . . . . . . . . . Self-Inflicted Damage 3 | . . . . . . . . . . . . . 3 Shots . | . . . . . . . . . . . . . . Rammed 1 | . . . . . . . . . . . . . 1 Targets Rammed 6 | . . . 1 . . 2 . . . . . . 3 Kicked 5 | . . . 1 . . 2 . . . . . . 2 Crushed . | . . . . . . . . . . . . . . Highest Temperature 387 | . . 265 45 . 387 183 199 341 198 . . . 208 Average Temperature 100 | . . 111 17 . 86 79 115 121 77 . . . 66 Received Heat Transfer 1445 | . . 279 36 18 220 74 6 134 72 . . . 606 Siege Activations . | . . . . . . . . . . . . . . Martial Activations . | . . . . . . . . . . . . . . Shielding Activations . | . . . . . . . . . . . . . . Robots Disrupted . | . . . . . . . . . . . . . . Combat Hostiles . | . . . . . . . . . . . . . . Robots Corrupted . | . . . . . . . . . . . . . . Combat Hostiles . | . . . . . . . . . . . . . . Parts Fried 3 | . . . . . . . . . . . . 2 1 Impact Corruptions . | . . . . . . . . . . . . . . Robots Melted 2 | . . . . . . . 1 . . . . . 1 Combat Hostiles 2 | . . . . . . . 1 . . . . . 1 Parts Melted 15 | . . . 2 1 1 . 5 1 2 1 . . 2 Heat Transferred 5450 | . . 185 444 185 950 222 870 744 370 370 . 259 851 Parts Sabotaged 3 | . . . . . . . . . . . . . 3 Parts Stolen . | . . . . . . . . . . . . . . Parts Stripped . | . . . . . . . . . . . . . . Power Chain Reactions . | . . . . . . . . . . . . . . Alert | -11 -10 -10 -9 -8 -7 -6 -5 -5 -5 -4 -3 -3 -2 ------- Run | Yrd Mat Min Mat Mat Fac Fac Fac Upp Upp Fac Res DSF Res Maximum Alert Level 1 | . . . . . . . . . . . . . 1 Low Security (%) 99 | 100 100 100 100 100 100 100 100 . . 100 100 100 94 Level 1 . | . . . . . . . . . . . . . 5 Level 2 . | . . . . . . . . . . . . . . Level 3 . | . . . . . . . . . . . . . . Level 4 . | . . . . . . . . . . . . . . Level 5 . | . . . . . . . . . . . . . . High Security . | . . . . . . . . . . . . . . Max Security . | . . . . . . . . . . . . . . Peak Influence 217 | . . 50 90 30 91 62 119 . . 84 25 70 217 Initial 39 | . . . . 12 . . . . . . 13 3 39 Average 32 | . . 12 42 4 21 11 35 . . 22 12 47 119 Influence Increases 1840 | . . 70 144 35 201 102 302 190 70 158 12 92 464 Destroy 0b10 Robot/C 1120 | . . 60 80 20 160 80 220 160 60 80 . 60 140 Destroy 0b10 Robot/NC 15 | . . . . . . . 15 . . . . . . Destroy Leader 260 | . . 10 30 10 40 20 30 30 10 30 . 20 30 Successful Hack 63 | . . . 4 5 . . . . . 42 12 . . Disable Machine 45 | . . . . . . . 15 . . . . . 30 Anti-Garrison Action 150 | . . . . . . . . . . . . . 150 Destroy Structure 67 | . . . . . 1 2 22 . . 6 . 12 24 Lose Combat Pursuer 120 | . . . 30 . . . . . . . . . 90 Influence Decreases 1785 | . . 70 114 65 201 102 283 209 70 132 33 27 479 Entered New Map 72 | . . . . 18 . . . 8 . . 13 2 31 Time Decay 1331 | . . 70 94 47 191 102 184 201 70 132 20 . 220 Lost Part 273 | . . . 20 . 10 . 10 . . . . 25 208 Lost Ally 20 | . . . . . . . . . . . . . 20 Purge Threat 89 | . . . . . . . 89 . . . . . . Squads Dispatched 20 | . 2 . . . 4 2 4 . . 1 . 2 5 Investigation 1 | . . . . . . . 1 . . . . . . Extermination 7 | . . . . . 2 1 2 . . 1 . . 1 Reinforcement 9 | . 2 . . . 1 1 1 . . . . 2 2 Assault 2 | . . . . . . . . . . . . . 2 Garrison 1 | . . . . . 1 . . . . . . . . Intercept . | . . . . . . . . . . . . . . Searches Triggered . | . . . . . . . . . . . . . . Construction Impeded 1 | . . . . . . . 1 . . . . . . Haulers Reinforced . | . . . . . . . . . . . . . . Active Scanning Responses . | . . . . . . . . . . . . . . Cargo Convoy Interrupts . | . . . . . . . . . . . . . . Stealth | -11 -10 -10 -9 -8 -7 -6 -5 -5 -5 -4 -3 -3 -2 --------- Run | Yrd Mat Min Mat Mat Fac Fac Fac Upp Upp Fac Res DSF Res Distress Signals 8 | . 1 . 1 . . . 1 . . 1 . . 4 Communications Jammed 39 | . . . . . . . . . . . . . 39 Distress Signals 39 | . . . . . . . . . . . . . 39 Times Spotted 120 | . 5 4 9 2 10 7 14 13 3 6 . 5 42 Peak Tracking Total 19 | . 4 2 5 1 4 3 5 5 3 2 . 3 19 Tactical Retreats 4 | . . . 1 . . . . . . . . . 3 Traps | -11 -10 -10 -9 -8 -7 -6 -5 -5 -5 -4 -3 -3 -2 ------- Run | Yrd Mat Min Mat Mat Fac Fac Fac Upp Upp Fac Res DSF Res Traps Triggered 7 | . . . . 3 . . 4 . . . . . . Indirectly . | . . . . . . . . . . . . . . Trap Hack Attempts . | . . . . . . . . . . . . . . Triggered . | . . . . . . . . . . . . . . Disarmed . | . . . . . . . . . . . . . . Reprogrammed . | . . . . . . . . . . . . . . Reused . | . . . . . . . . . . . . . . Traps Extracted . | . . . . . . . . . . . . . . Installed . | . . . . . . . . . . . . . . Triggered . | . . . . . . . . . . . . . . Machines | -11 -10 -10 -9 -8 -7 -6 -5 -5 -5 -4 -3 -3 -2 ---------- Run | Yrd Mat Min Mat Mat Fac Fac Fac Upp Upp Fac Res DSF Res Machines Disabled 4 | . . . . . . . 1 . . . . . 3 Max in Single Turn 1 | . . . . . . . 1 . . . . . 1 Garrison Access 2 | . . . . . 1 . . . . . . . 1 Machines Repaired . | . . . . . . . . . . . . . . Machines Dismantled . | . . . . . . . . . . . . . . Machines Sabotaged . | . . . . . . . . . . . . . . Overloaded Fab Kills . | . . . . . . . . . . . . . . Hacking | -11 -10 -10 -9 -8 -7 -6 -5 -5 -5 -4 -3 -3 -2 --------- Run | Yrd Mat Min Mat Mat Fac Fac Fac Upp Upp Fac Res DSF Res Machines Accessed 26 | . 1 . 5 2 2 3 7 . . 3 2 . 1 Terminals 13 | . 1 . 3 1 . 1 5 . . 1 1 . . Fabricators 1 | . . . . . . . . . . 1 . . . Repair Stations 3 | . . . . . . 1 1 . . . 1 . . Recycling Units 5 | . . . 1 . 1 1 1 . . 1 . . . Scanalyzers 2 | . . . 1 1 . . . . . . . . . Garrison Access 2 | . . . . . 1 . . . . . . . 1 Total Hacks 71 | . 1 . 25 6 3 5 17 . . 8 4 . 2 Successful 33 | . . . 17 2 2 . 5 . . 5 2 . . Failed 37 | . 1 . 8 3 1 5 12 . . 3 2 . 2 Catastrophic 5 | . 1 . 1 . . 2 . . . . . . 1 Database Lockouts 1 | . . . . 1 . . . . . . . . . Manual 5 | . 1 . 2 . . . 1 . . 1 . . . Terminals 33 | . 1 . 8 3 . 3 12 . . 4 2 . . Fabricators 2 | . . . . . . . . . . 2 . . . Repair Stations 6 | . . . . . . 1 3 . . . 2 . . Recycling Units 12 | . . . 5 . 2 1 2 . . 2 . . . Scanalyzers 15 | . . . 12 3 . . . . . . . . . Garrison Access 3 | . . . . . 1 . . . . . . . 2 Terminal Hacks 9 | . . . 3 1 . . 2 . . 2 1 . . Record 3 | . . . 1 . . . 1 . . 1 . . . Open DSF 1 | . . . . . . . . . . . 1 . . Emergency Access Points 1 | . . . 1 . . . . . . . . . . Terminal Index 1 | . . . . . . . . . . 1 . . . Alert Level 1 | . . . 1 . . . . . . . . . . Unreport Threat 1 | . . . . . . . 1 . . . . . . Investigation Status 1 | . . . . 1 . . . . . . . . . Fabricator Hacks 1 | . . . . . . . . . . 1 . . . Build 1 | . . . . . . . . . . 1 . . . Repair Station Hacks 3 | . . . . . . . 2 . . . 1 . . Scan Component 2 | . . . . . . . 1 . . . 1 . . Repair 1 | . . . . . . . 1 . . . . . . Recycling Unit Hacks 8 | . . . 4 . 1 . 1 . . 2 . . . Recycle Component 2 | . . . . . . . . . . 2 . . . Retrieve Matter 4 | . . . 2 . 1 . 1 . . . . . . Retrieve Components 2 | . . . 2 . . . . . . . . . . Scanalyzer 11 | . . . 10 1 . . . . . . . . . Insert Component 2 | . . . 2 . . . . . . . . . . Analyze 2 | . . . 2 . . . . . . . . . . Retrieve Study 7 | . . . 6 1 . . . . . . . . . Garrison Access Hacks 1 | . . . . . 1 . . . . . . . . Seal Access 1 | . . . . . 1 . . . . . . . . Unauthorized Hacks . | . . . . . . . . . . . . . . Terminals . | . . . . . . . . . . . . . . Fabricators . | . . . . . . . . . . . . . . Repair Stations . | . . . . . . . . . . . . . . Recycling Units . | . . . . . . . . . . . . . . Scanalyzers . | . . . . . . . . . . . . . . Garrison Access . | . . . . . . . . . . . . . . Data Cores Recovered 1 | . . . . . . . 1 . . . . . . Used . | . . . . . . . . . . . . . . Hacking Detections 22 | . 1 . 5 2 1 3 6 . . 2 1 . 1 Full Trace Events . | . . . . . . . . . . . . . . Feedback Events . | . . . . . . . . . . . . . . Feedback Blocked . | . . . . . . . . . . . . . . Robot Schematics Acquired . | . . . . . . . . . . . . . . Robots Built 2 | . . . . . . . . . . 2 . . . Authchips . | . . . . . . . . . . . . . . Time 40 | . . . . . . . . . . 40 . . . Total Robot Build Rating 2 | . . . . . . . . . . 2 . . . Part Schematics Acquired 2 | . . . 2 . . . . . . . . . . Parts Built . | . . . . . . . . . . . . . . Authchips . | . . . . . . . . . . . . . . Time . | . . . . . . . . . . . . . . Total Part Build Rating . | . . . . . . . . . . . . . . Part Studies Acquired 7 | . . . 6 1 . . . . . . . . . Parts Repaired . | . . . . . . . . . . . . . . Time 25 | . . . . . . . 25 . . . . . . Parts Recycled 2 | . . . . . . . . . . 2 . . . Recycled Matter . | . . . . . . . . . . . . . . Retrieved Matter . | . . . . . . . . . . . . . . Retrieved Components 1 | . . . 1 . . . . . . . . . . Parts Scanalyzed 2 | . . . 2 . . . . . . . . . . Part Schematics Acquired 2 | . . . 2 . . . . . . . . . . Parts Damaged . | . . . . . . . . . . . . . . Bothacking | -11 -10 -10 -9 -8 -7 -6 -5 -5 -5 -4 -3 -3 -2 ------------ Run | Yrd Mat Min Mat Mat Fac Fac Fac Upp Upp Fac Res DSF Res Used RIF Installer . | . . . . . . . . . . . . . . Robots Hacked . | . . . . . . . . . . . . . . Non-combat . | . . . . . . . . . . . . . . Combat . | . . . . . . . . . . . . . . Robot Hacks Applied . | . . . . . . . . . . . . . . Relay Couplers Released 1 | . . . . . . . . . . . . . 1 Machine Destruction 1 | . . . . . . . . . . . . . 1 Fabnet Peak Effective % . | . . . . . . . . . . . . . . Robots Rewired . | . . . . . . . . . . . . . . Allies Hacked . | . . . . . . . . . . . . . . Hacks Repelled . | . . . . . . . . . . . . . . Allies | -11 -10 -10 -9 -8 -7 -6 -5 -5 -5 -4 -3 -3 -2 -------- Run | Yrd Mat Min Mat Mat Fac Fac Fac Upp Upp Fac Res DSF Res Total Allies 2 | . . . . . . . . . . 2 . . . Largest Group 2 | . . . . . . . . . . 2 . . . Highest-Rated Group 20 | . . . . . . . . . . 20 . . . Highest-Rated Ally 10 | . . . . . . . . . . 10 . . . Total Orders 1 | . . . . . . . . . . . . . 1 EXPLORE 1 | . . . . . . . . . . . . . 1 Ally Attacks . | . . . . . . . . . . . . . . Total Damage . | . . . . . . . . . . . . . . Kills . | . . . . . . . . . . . . . . Allies Corrupted . | . . . . . . . . . . . . . . Allies Melted . | . . . . . . . . . . . . . . Intel | -11 -10 -10 -9 -8 -7 -6 -5 -5 -5 -4 -3 -3 -2 ------- Run | Yrd Mat Min Mat Mat Fac Fac Fac Upp Upp Fac Res DSF Res Active Infowar (turns) 297 | . . . . . 41 . . . . . . . 256 Sensors 41 | . . . . . 41 . . . . . . . . Jamming 256 | . . . . . . . . . . . . . 256 Robot Analysis Total . | . . . . . . . . . . . . . . Derelict Logs Recovered . | . . . . . . . . . . . . . . Drone Launches 2 | . . . . . . . . . . . . . 2 Drone Recoveries . | . . . . . . . . . . . . . . Exploration | -11 -10 -10 -9 -8 -7 -6 -5 -5 -5 -4 -3 -3 -2 ------------- Run | Yrd Mat Min Mat Mat Fac Fac Fac Upp Upp Fac Res DSF Res Turns Passed 5558 | 71 411 266 242 306 656 469 1016 737 159 516 50 174 485 Spaces Moved 3710 | 50 189 164 153 212 460 337 693 514 112 343 33 96 354 Core 37 | 3 . . . . . . . . . . . . 34 Treads . | . . . . . . . . . . . . . . Legs 3673 | 47 189 164 153 212 460 337 693 514 112 343 33 96 320 Wheels . | . . . . . . . . . . . . . . Hover . | . . . . . . . . . . . . . . Flight . | . . . . . . . . . . . . . . Fastest Speed 50 | 50 120 120 105 105 105 112 116 108 112 111 117 116 50 Average Speed 114 | 115 120 120 106 107 107 114 119 125 115 112 117 120 104 Slowest Speed 245 | 120 120 120 120 245 112 116 190 182 182 117 117 187 190 Overloaded Moves . | . . . . . . . . . . . . . . Propulsion Burnouts . | . . . . . . . . . . . . . . Robots Hopped 1 | . 1 . . . . . . . . . . . . Potential Cave-ins . | . . . . . . . . . . . . . . Cave-ins Triggered . | . . . . . . . . . . . . . . Exploration Rate (%) 25 | 3 34 42 15 20 10 10 16 59 22 9 1 99 15 Regions Visited 13 Branch Regions 3 Pre-discovered Areas . | . . . . . . . . . . . . . . Known Exits Taken 1 | . . . . . . . . . . . 1 . . Unknown Exits Taken 11 | 1 1 1 1 1 1 1 1 1 1 1 . . . Scrap Searched . | . . . . . . . . . . . . . . Spaces Dug . | . . . . . . . . . . . . . . Terrain Destroyed 83 | . . . . . . 1 17 53 . 1 . 6 5 Melee . | . . . . . . . . . . . . . . Projectile 32 | . . . . . . 1 11 14 . 1 . . 5 AOE 51 | . . . . . . . 6 39 . . . 6 . Terrain Rammed . | . . . . . . . . . . . . . . Walls Destroyed . | . . . . . . . . . . . . . . Machines Disabled . | . . . . . . . . . . . . . . Actions | -11 -10 -10 -9 -8 -7 -6 -5 -5 -5 -4 -3 -3 -2 --------- Run | Yrd Mat Min Mat Mat Fac Fac Fac Upp Upp Fac Res DSF Res Total 4687 | 60 371 199 207 284 593 409 827 555 122 460 45 127 428 Wait 511 | . 178 11 9 28 66 45 64 3 2 78 10 6 11 Move 3695 | 49 186 163 152 211 459 336 692 513 111 342 32 95 354 Hop 1 | . 1 . . . . . . . . . . . . Pick Up 58 | 5 3 4 8 11 11 3 1 . . 2 . 1 9 Fast Attach 103 | 6 . 1 6 11 8 2 23 10 . 14 . 5 17 Attach 33 | . . 1 5 3 4 2 2 1 . 1 2 4 8 Detach 11 | . . . 1 1 2 . 3 . . 2 . 1 1 Swap 36 | . . . 1 3 4 6 8 5 2 5 . 2 . Drop 101 | . 2 2 10 13 20 8 16 4 . 12 1 2 11 Fire 132 | . 1 17 14 3 19 5 18 19 7 4 . 11 14 Melee . | . . . . . . . . . . . . . . Ram 1 | . . . . . . . . . . . . . 1 Kick 5 | . . . 1 . . 2 . . . . . . 2 Crush . | . . . . . . . . . . . . . . Escape Stasis . | . . . . . . . . . . . . . . Rewire . | . . . . . . . . . . . . . . Trap . | . . . . . . . . . . . . . . Miscellaneous . | . . . . . . . . . . . . . . Route ------- -11/Scrapyard -10/Materials -10/Mines -9/Materials -8/Materials -7/Factory -6/Factory -5/Factory -5/Upper Caves -5/Upper Caves -4/Factory -3/Research -3/DSF -2/Research History --------- Turn | Location | Event 2 | -11/Scrapyard | Met Revision 17 16 | -11/Scrapyard | Discovered new exit (range 15) 72 | -11/Scrapyard | Entered Materials 73 | -10/Materials | Met a group of wandering Federalists 308 | -10/Materials | Build established: Mutant 457 | -10/Materials | Discovered new exit (range 13) 483 | -10/Materials | Entered Mines 563 | -10/Mines | Core integrity fell below 50% 665 | -10/Mines | Received a Rocket Launcher from a helpful Derelict 698 | -10/Mines | Discovered new exit (range 10) 749 | -10/Mines | Entered Materials 749 | -9/Materials | Evolved 2 slots: Propulsion x1, Utility x1 949 | -9/Materials | Discovered new exit (range 15) 991 | -9/Materials | Entered another Materials area 991 | -8/Materials | Evolved 2 slots: Utility x1, Weapon x1 1033 | -8/Materials | Central database locked down 1249 | -8/Materials | Discovered new exit (range 5) 1297 | -8/Materials | Build established: Tank 1297 | -8/Materials | Entered Factory 1297 | -7/Factory | Evolved 2 slots: Power x1, Propulsion x1 1408 | -7/Factory | Garrison activated, responded to threat 1888 | -7/Factory | Discovered new exit (range 15) 1953 | -7/Factory | Entered another Factory area 1953 | -6/Factory | Evolved 2 slots: Utility x1, Weapon x1 2385 | -6/Factory | Discovered new exit (range 5) 2422 | -6/Factory | Entered another Factory area 2422 | -5/Factory | Evolved 2 slots: Utility x1, Weapon x1 3422 | -5/Factory | Discovered new exit (range 8) 3438 | -5/Factory | Entered Upper Caves 3719 | -5/Upper Caves | Build established: Scavenger-Tank 4034 | -5/Upper Caves | Attacked by a faux Warlord 4084 | -5/Upper Caves | Lost 4 parts (1p1u2w) 4085 | -5/Upper Caves | Discovered new exit (range 15) 4175 | -5/Upper Caves | Entered another Upper Caves area 4314 | -5/Upper Caves | Build established: Scavenger-Gunner 4319 | -5/Upper Caves | Discovered new exit (range 12) 4334 | -5/Upper Caves | Entered Factory 4334 | -4/Factory | Evolved 2 slots: Propulsion x1, Utility x1 4485 | -4/Factory | Fabricated T-07 Excavator (x2) 4747 | -4/Factory | Discovered new exit (range 12) 4850 | -4/Factory | Entered Research 4850 | -3/Research | Evolved 2 slots: Utility x1, Weapon x1 4899 | -3/Research | Identified exit to DSF 4900 | -3/Research | Entered DSF 4900 | -3/DSF | Met a pair of Sappers preparing to destroy DSF 4925 | -3/DSF | Additional patrols routed to DSF 4994 | -3/DSF | Lost 9 parts (3u6w) 5056 | -3/DSF | Discovered new exit (range 16) 5074 | -3/DSF | Entered Research 5074 | -2/Research | Evolved 2 slots: Propulsion x1, Utility x1 5229 | -2/Research | Lost 3 parts (1u2w) 5369 | -2/Research | Spotted B-90 Cyclops 5436 | -2/Research | Build established: Scavenger-Executioner 5513 | -2/Research | System corruption reached 10% 5543 | -2/Research | Core integrity fell below 50% 5556 | -2/Research | Core integrity fell below 20% 5559 | -2/Research | Destroyed by G-73 Enforcer with Heavy Laser Last Messages --------------- 05536_ W-44 Eye distress signal jammed. 05538_ Com. HERF Cannon destroyed. 05538_ Enh. Quantum Rifle destroyed. 05538_ W-44 Eye distress signal jammed. 05540_ Adv. Power Amplifier destroyed. 05540_ W-44 Eye distress signal jammed. 05540_ Dropped Centrium Leg. 05541_ W-44 Eye distress signal jammed. 05542_ Knocked back. 05542_ W-44 Eye distress signal jammed. 05545_ M-28 Smith fits Backup Propulsion III on T-07 Excavator. 05546_ W-44 Eye distress signal jammed. 05548_ Penetrated by Slug. 05548_ W-44 Eye distress signal jammed. 05550_ Knocked back. 05551_ Adv. Transmission Jammer destroyed. 05554_ Knocked back. 05554_ Acquired 4 matter. 05559_ Slammed into O-24 Administrator. Map ----- +----------------------------------------------------+ | ?????????????????????????????????????????????????? | | ?????????????????????????????????????????????????? | | ?????????????????????????????????????????????????? | | ?????????????????????????????????????????????????? | | ?????????????????????????????????????????????????? | | ?????????????????????????????????????????????????? | | ?????????????????????????????????????????????????? | | ?????????????????????????????????????????????????? | | ?????????????????????????????????????????????????? | | ?????????????????????????????????????????????????? | | ????????????????????????? ?????????????????????? | | ????????????????????????? ???????????????????? | | ?????????????????????????k !! ????????????????? | | ????????????????????????? !! ??????????????? | | ????????????????????????# ! #????????????? | | ????????????????????????# ?????????????? | | ????????????????????????# #?????????????? | | ????????????????????????# ??????????????? | | ????????????????????????# ???????????????? | | ????????????????????????# u ????????????????? | | ????????????????????????#w ?????????????????? | | ????????????????????????# ??????????????????? | | ????????????????????????# #???????????????????? | | ????????????????????????# o #???????????????????? | | ????????????????????????#g t#???????????????????? | | ????????????????????????#@ggg#???????????????????? | | ????????????????????????# g #???????????????????? | | ????????????????????????# gg#???????????????????? | | ????????????????????????# #???????????????????? | | ????????????????????????# g #??????##########???? | | ????????????????????????# p #??????# #???? | | ????????????????????????# #??????# #???? | | ??????????????????????### p######## #???? | | ??????????????????????#"" # #???? | | ??????????????????????#T # #???? | | ??????????????????????### # #???? | | ????????????????????????# % + #???? | | ????????????????????????########H # #???? | | ???????????????????????????????#% # #???? | | ???????????????????????????????# ###########??? | | ???????????????????????????????#= ?? | | ??????????????????????########## ?? | | ??????????????????????# # ?? | | ??????????????????????# // #* ^ ?? | | ??????????????????????# // #! ##########+??? | | ??????????????????????# / #! #? ???????? | | ??????????????????????# # % # = ??? | | ??????????????????????# / % + ??? | | ??????????????????????# # # ?? | | ??????????????????????# # # ??? | +----------------------------------------------------+ Best States ------------- Heat Dissipation 157 Coolant Potential 100 Energy Generation 57 Energy Capacity 600 Matter Stores 300 Matter Capacity 600 Sight Range 16 Robot Scan Range 15 Terrain Scan Density 10 Jamming Range 16 Power Amplification 30 Base Temperature (-) 100 Armor Coverage 600 Weapon Shielding 66 Evasion (%) 55 Targeting Accuracy 8 Target Analysis 9 Core Analysis 9 Recoil Reduction 6 Defensive Hacking 10 Item Schematics ----------------- Rocket Launcher | -9/Materials | Scanalyzed Particle Gun | -9/Materials | Scanalyzed Robot Schematics ------------------ None Fabricated ------------ T-07 Excavator | x2 | -4/Factory | Preloaded Repaired ---------- Nothing Studied --------- Aluminum Leg | -9/Materials | Hacked Rocket Launcher | -9/Materials | Hacked Assault Rifle | -9/Materials | Hacked Particle Gun | -9/Materials | Hacked Ion Engine | -9/Materials | Hacked Grenade Launcher | -9/Materials | Hacked Carbon-fiber Leg | -8/Materials | Hacked Alien Tech Used ----------------- None Achievements -------------- DATA ERROR: Steam Global Achievement% DIY Cooler For Emergencies Only Heavy Suspicion I Have A Map? Item+ Organ Harvest That Tickles There's More Where That Came From Throw Away The Key Window Shopping You Again Challenges ------------ None Game ------ Seed StructuralMasterLaser Manual? 0 Play Time 01:39:15 Cumulative 18.0 hours Start 2026.01.04 @ 15:39:47 End 2026.01.04 @ 17:27:04 Sessions 1 Manual Loads 0 Difficulty Rogue Special Mode None Game No. 22 Rogue 22 Adventurer 0 Explorer 0 Win Type - Total 0 Types 0/0/0/0/0/0/0/0/0/0 Lore% 10 Gallery% 26 Achievement% 13 Wizard Run 0 Options --------- Layout 1 ASCII 0 Keyboard 0 Movement Mouse Keybinds 0 Fullscreen 1 Font 32/SmallcapsGlow Map View 25x17 Zoom Use 0% Tactical HUD 1 Map Filters NONE Filters NONE Steam X RUN: 9c4f69d7-b77a-4c43-a1b8-a7f40bd3901b